bitfinex-derivatives/quotes_BTCF0:USTF0_20250121
["timestamp","ask_amount","ask_price","bid_price","bid_amount"]
[1737441191426,0.714895,101930.0,101910.0,0.43024323]
[1737441193127,0.354095,101930.0,101910.0,0.43024323]
[1737441193335,0.10109468,101920.0,101910.0,0.43024323]
[1737441193630,0.81598968,101930.0,101910.0,0.13744324]
[1737441194019,0.714895,101930.0,101910.0,0.13744324]
[1737441194236,0.81598968,101930.0,101910.0,0.13744324]
[1737441194725,0.039299,101920.0,101910.0,0.13744324]
[1737441195028,0.14039368,101920.0,101910.0,0.13744324]
[1737441195230,0.50119368,101920.0,101910.0,0.09814024]
[1737441195429,0.039305,101910.0,101890.0,0.40020557]
[1737441195730,0.039305,101910.0,101890.0,0.18762308]
[1737441196623,0.14039968,101910.0,101890.0,0.18762308]
[1737441196830,0.039307,101900.0,101890.0,0.18762308]
[1737441197130,0.350507,101900.0,101890.0,0.18762308]
[1737441197431,0.1045,101900.0,101890.0,0.18762308]
[1737441199134,0.143807,101900.0,101890.0,0.18762308]
[1737441199634,0.400103,101910.0,101890.0,0.18762308]
[1737441199829,0.400103,101910.0,101900.0,0.039307]
[1737441200434,0.400103,101910.0,101900.0,0.13744724]
[1737441201230,0.400103,101910.0,101900.0,0.09814024]
[1737441201535,0.50119768,101910.0,101900.0,0.09814024]
[1737441201734,0.46746408,101910.0,101900.0,0.09814024]
[1737441202135,0.039303,101910.0,101900.0,0.13744724]
[1737441202334,0.3608,101930.0,101900.0,0.52630132]
[1737441202530,0.400093,101940.0,101920.0,0.10666008]
[1737441202733,0.42816108,101940.0,101920.0,0.039299]
[1737441203025,0.3608,101940.0,101930.0,0.039295]
[1737441203226,0.50149,101950.0,101930.0,0.039295]
[1737441203430,0.56885108,101950.0,101930.0,0.039295]
[1737441203627,0.50149,101950.0,101930.0,0.13741598]
[1737441205236,0.039291,101940.0,101930.0,0.13741598]
[1737441206735,0.039291,101940.0,101930.0,0.24741598]
[1737441206932,0.400091,101940.0,101900.0,0.3608]
[1737441207137,0.46175444,101910.0,101890.0,0.27252209]
[1737441207332,0.039307,101900.0,101890.0,0.23321309]
[1737441207548,0.60116144,101900.0,101890.0,0.33131482]
[1737441207840,0.71046144,101900.0,101890.0,0.23321309]
[1737441208441,0.71046144,101900.0,101880.0,0.64491373]
[1737441208643,0.50106444,101890.0,101880.0,0.57691372]
[1737441209539,0.50116001,101890.0,101880.0,0.57691372]
[1737441210732,0.039317,101880.0,101860.0,1.08626939]
[1737441210933,0.400117,101880.0,101860.0,1.08626939]
[1737441211135,0.400117,101880.0,101860.0,1.18441926]
[1737441214546,0.400117,101880.0,101860.0,1.1360527]
[1737441214742,0.08781993,101880.0,101870.0,0.50107044]
[1737441215060,0.08781993,101880.0,101870.0,0.258316]
[1737441215242,0.08781993,101880.0,101870.0,0.619116]
[1737441215548,0.08781993,101880.0,101870.0,0.81823476]
[1737441216347,0.18600324,101890.0,101880.0,0.039314]
[1737441216348,0.14669024,101890.0,101880.0,0.039314]
[1737441216552,0.21460563,101900.0,101880.0,0.4656]
[1737441216750,0.03931,101890.0,101880.0,0.039314]
[1737441216948,0.03931,101890.0,101880.0,0.13746387]
[1737441217748,0.03931,101890.0,101880.0,0.09814987]
[1737441217951,0.57540363,101900.0,101880.0,0.59921531]
[1737441218147,0.400107,101900.0,101880.0,0.59921531]
[1737441218453,0.400107,101900.0,101880.0,0.49826087]
[1737441218650,0.039307,101900.0,101880.0,0.49826087]
[1737441219041,0.4671,101910.0,101890.0,0.14026444]
[1737441219241,0.039303,101910.0,101900.0,0.039307]
[1737441219939,0.039303,101910.0,101900.0,0.09813061]
[1737441221045,0.400103,101910.0,101900.0,0.09813061]
[1737441223251,0.400103,101910.0,101900.0,0.13743761]
[1737441223748,0.400103,101910.0,101900.0,0.0694376]
[1737441224156,0.400103,101910.0,101900.0,0.1794376]
[1737441224653,0.400103,101910.0,101900.0,0.1401306]
[1737441224955,0.50105744,101910.0,101880.0,0.26535809]
[1737441225260,0.039308,101900.0,101880.0,0.5128007]
[1737441225651,0.03931,101890.0,101880.0,0.6572007]
[1737441225844,0.40011,101890.0,101880.0,0.11]
[1737441226050,0.039318,101870.0,101860.0,1.22127398]
[1737441226350,0.039318,101870.0,101860.0,1.31941903]
[1737441226551,0.400118,101870.0,101860.0,0.50125803]
[1737441226755,0.501018,101870.0,101860.0,0.39125803]
[1737441227449,0.400118,101870.0,101860.0,0.43058003]
[1737441228555,0.400118,101870.0,101860.0,0.13746705]
[1737441228754,0.400118,101870.0,101860.0,0.06946704]
[1737441229155,0.3608,101870.0,101860.0,0.06946704]
[1737441229556,0.3608,101870.0,101860.0,0.17042148]
[1737441229758,0.3108,101870.0,101860.0,0.17042148]
[1737441229958,0.3108,101870.0,101860.0,0.06946704]
[1737441230462,0.400116,101880.0,101860.0,0.03014504]
[1737441230463,0.039316,101880.0,101860.0,0.03014504]
[1737441230759,0.039316,101880.0,101870.0,0.039318]
[1737441231354,0.039316,101880.0,101870.0,0.13748714]
[1737441231760,0.039311,101890.0,101880.0,0.039313]
[1737441232355,0.039311,101890.0,101880.0,0.1374725]
[1737441233053,0.039311,101890.0,101880.0,0.2425725]
[1737441233460,0.039311,101890.0,101880.0,0.1374725]
[1737441233773,0.039311,101890.0,101880.0,0.0981595]
[1737441233959,0.039311,101890.0,101880.0,0.2081595]
[1737441235959,0.039317,101880.0,101860.0,0.14442]
[1737441236262,0.039317,101880.0,101870.0,0.09814987]
[1737441236660,0.148917,101880.0,101860.0,0.25442]
[1737441236861,0.148917,101880.0,101870.0,0.0981595]
[1737441237060,0.148917,101880.0,101860.0,0.25442]
[1737441237256,0.039318,101870.0,101860.0,0.28882967]
[1737441237657,0.039318,101870.0,101860.0,0.3525795]
[1737441237958,0.10671329,101870.0,101860.0,0.2081595]
[1737441238159,0.039318,101870.0,101860.0,0.2081595]
[1737441238359,0.400118,101870.0,101860.0,0.2081595]
[1737441240661,0.46751329,101870.0,101850.0,0.61592681]
[1737441240859,0.46751729,101860.0,101850.0,0.04840181]
[1737441241063,0.46751729,101860.0,101850.0,8.226e-05]
[1737441241460,0.53491258,101860.0,101850.0,2.6e-07]
[1737441242063,0.83491258,101860.0,101850.0,2.6e-07]
[1737441242456,0.83498595,101860.0,101850.0,2.6e-07]
[1737441242969,0.76759066,101860.0,101850.0,2.6e-07]
[1737441243266,0.51698923,101860.0,101850.0,2.6e-07]
[1737441243668,0.039326,101850.0,101840.0,0.22511323]
[1737441243870,0.505626,101850.0,101840.0,0.22511323]
[1737441244066,0.505626,101850.0,101840.0,0.32329201]
[1737441246265,0.505626,101850.0,101840.0,0.09817878]
[1737441247074,0.6067824,101850.0,101820.0,0.55956506]
[1737441247275,0.039334,101830.0,101820.0,0.55956506]
[1737441247466,0.039334,101830.0,101820.0,0.65775348]
[1737441248763,0.40013,101840.0,101820.0,0.65775348]
[1737441248968,0.40013,101840.0,101830.0,0.039334]
[1737441249374,0.40013,101840.0,101830.0,0.255334]
[1737441249673,0.40013,101840.0,101830.0,0.4627417]
[1737441250880,0.039327,101850.0,101840.0,0.039329]
[1737441251067,0.1565053,101850.0,101840.0,0.400129]
[1737441251268,0.1565053,101850.0,101840.0,0.3608]
[1737441251471,0.1565053,101850.0,101840.0,0.56899806]
[1737441251765,0.1565053,101850.0,101840.0,0.45899806]
[1737441252176,0.6184617,101850.0,101830.0,0.3608]
[1737441252483,0.03933,101840.0,101830.0,0.45898842]
[1737441252675,0.03933,101840.0,101830.0,0.49832242]
[1737441253480,0.03933,101840.0,101830.0,0.60832242]
[1737441253779,0.03933,101840.0,101830.0,0.13752242]
[1737441254074,0.03933,101840.0,101830.0,0.24752242]
[1737441254471,0.03933,101840.0,101830.0,0.20818842]
[1737441254777,0.03933,101840.0,101830.0,0.09818842]
[1737441258180,0.62452455,101860.0,101830.0,0.23867882]
[1737441258386,0.039327,101850.0,101840.0,0.03933]
[1737441258680,0.039327,101850.0,101830.0,0.3608]
[1737441258882,0.039327,101850.0,101840.0,0.03933]
[1737441259073,0.039327,101850.0,101840.0,0.13751842]
[1737441259270,0.039327,101850.0,101840.0,0.03933]
[1737441259680,0.039327,101850.0,101840.0,0.13751842]
[1737441259875,0.1565053,101850.0,101840.0,0.13751842]
[1737441260085,0.1565053,101850.0,101840.0,0.49831842]
[1737441260978,0.1565053,101850.0,101840.0,0.13751842]
[1737441263073,0.039327,101850.0,101840.0,0.13751842]
[1737441263383,0.039327,101850.0,101840.0,0.17977665]
[1737441263881,0.039327,101850.0,101840.0,0.54057665]
[1737441265180,0.1404834,101850.0,101840.0,0.45898842]
[1737441265382,0.039334,101830.0,101820.0,0.400137]
[1737441265686,0.039334,101830.0,101820.0,0.53274337]
[1737441266679,0.039334,101830.0,101820.0,0.49832542]
[1737441266891,0.54551098,101860.0,101820.0,0.64122443]
[1737441267193,0.039327,101850.0,101840.0,0.03933]
[1737441267480,0.039327,101850.0,101840.0,0.43454849]
[1737441267687,0.1565053,101850.0,101840.0,0.8111078]
[1737441267884,0.1565053,101850.0,101840.0,0.95185619]
[1737441268779,0.1565053,101850.0,101840.0,0.88385618]
[1737441268981,0.1565053,101850.0,101840.0,0.92318618]
[1737441269390,0.1565053,101850.0,101840.0,0.24262619]
[1737441269391,0.22396461,101850.0,101840.0,0.24262619]
[1737441269576,0.22396461,101850.0,101840.0,0.2082077]
[1737441270181,0.03933,101840.0,101830.0,0.400132]
[1737441270382,0.10678931,101840.0,101830.0,0.39521969]
[1737441270585,0.10678931,101840.0,101830.0,0.49340811]
[1737441270788,0.03933,101840.0,101830.0,0.49340811]
[1737441270987,0.03933,101840.0,101830.0,0.53274211]
[1737441271391,0.03933,101840.0,101830.0,0.94247126]
[1737441271990,0.54659988,101850.0,101840.0,0.03933]
[1737441272795,0.54659988,101850.0,101840.0,0.13752806]
[1737441273685,0.54659988,101850.0,101840.0,0.06952805]
[1737441274583,0.54659988,101850.0,101840.0,0.10885805]
[1737441275295,0.14647288,101850.0,101840.0,0.60521404]
[1737441276091,0.14647288,101850.0,101840.0,0.71521404]
[1737441276092,0.32224034,101850.0,101840.0,0.71521404]
[1737441276292,0.32224034,101850.0,101840.0,0.75823232]
[1737441278099,0.32224034,101850.0,101840.0,0.69814903]
[1737441278299,0.36156634,101850.0,101840.0,0.22734903]
[1737441278496,0.36156634,101850.0,101840.0,0.18433075]
[1737441278692,0.36156634,101850.0,101840.0,0.14991238]
[1737441278888,0.36156634,101850.0,101840.0,0.11058238]
[1737441279095,0.46806634,101850.0,101840.0,0.11058238]
[1737441279599,0.57036634,101850.0,101840.0,0.11058238]
[1737441279986,0.248126,101850.0,101840.0,0.92988818]
[1737441280297,0.71006362,101850.0,101840.0,0.86036013]
[1737441281302,0.608926,101850.0,101840.0,0.86036013]
[1737441282095,0.248126,101850.0,101840.0,0.86036013]
[1737441283501,0.039326,101850.0,101840.0,0.99787855]
[1737441283702,0.039326,101850.0,101840.0,0.92987854]
[1737441283895,0.18579888,101850.0,101840.0,0.24751842]
[1737441284594,0.14647288,101850.0,101840.0,0.24751842]
[1737441284999,0.14647288,101850.0,101840.0,0.28795659]
[1737441288310,0.14647288,101850.0,101840.0,0.46354263]
[1737441288599,0.14647288,101850.0,101840.0,0.39554262]
[1737441289002,0.14647288,101850.0,101840.0,0.28554262]
[1737441289303,0.18579888,101850.0,101840.0,0.24510445]
[1737441293202,0.21509346,101850.0,101840.0,0.06951841]
[1737441294304,0.17576746,101850.0,101840.0,0.13694219]
[1737441294700,0.17576746,101850.0,101840.0,0.53215826]
[1737441294900,0.0987,101870.0,101850.0,0.039326]
[1737441295203,0.0987,101870.0,101860.0,0.10674578]
[1737441295709,0.0987,101870.0,101860.0,0.46754578]
[1737441296106,0.0987,101870.0,101860.0,0.50195503]
[1737441296307,0.0987,101870.0,101860.0,0.60012417]
[1737441297102,0.14719444,101870.0,101860.0,0.60012417]
[1737441297302,0.30651274,101890.0,101860.0,0.60012366]
[1737441297509,0.20451274,101890.0,101880.0,0.53496156]
[1737441297696,0.03945174,101890.0,101880.0,0.53507881]
[1737441298004,0.2338002,101900.0,101890.0,0.03931]
[1737441298205,0.0184662,101900.0,101890.0,0.83495756]
[1737441298403,0.04010158,101910.0,101900.0,0.039307]
[1737441298609,0.04010158,101910.0,101900.0,0.53495456]
[1737441299200,0.01410158,101910.0,101900.0,0.63308517]
[1737441299405,0.01410158,101910.0,101900.0,0.60004972]
[1737441299710,0.01410158,101910.0,101900.0,0.59919425]
[1737441300010,0.75181768,101950.0,101920.0,0.039297]
[1737441300205,0.75181768,101950.0,101920.0,0.400097]
[1737441300511,0.65086104,101950.0,101920.0,0.61105364]
[1737441300811,0.039291,101940.0,101920.0,0.70918425]
[1737441301009,0.50105164,101930.0,101920.0,0.09813061]
[1737441301200,0.039295,101930.0,101920.0,0.09813061]
[1737441301511,0.039295,101930.0,101920.0,0.45893061]
[1737441302014,0.146895,101930.0,101920.0,0.09813061]
[1737441302497,0.507695,101930.0,101910.0,0.400102]
[1737441302698,0.039299,101920.0,101910.0,0.400102]
[1737441302899,0.039296,101930.0,101910.0,0.73045851]
[1737441303104,0.400096,101930.0,101910.0,0.73045851]
[1737441303305,0.039296,101930.0,101910.0,0.73045851]
[1737441303505,0.400096,101930.0,101910.0,0.73045851]
[1737441305410,0.039299,101920.0,101910.0,0.63294126]
[1737441305711,0.400099,101920.0,101910.0,0.27214126]
[1737441305911,0.400099,101920.0,101910.0,0.17402991]
[1737441306611,0.50105564,101920.0,101910.0,0.17402991]
[1737441307710,0.50105564,101920.0,101900.0,0.23224516]
[1737441307711,0.039303,101910.0,101900.0,0.23224516]
[1737441307912,0.70675964,101910.0,101900.0,0.23224516]
[1737441308520,0.2057,101910.0,101900.0,0.039307]
[1737441308707,0.2057,101910.0,101890.0,1.01233745]
[1737441308708,0.2057,101910.0,101890.0,0.62284444]
[1737441309014,0.400107,101900.0,101890.0,0.65931778]
[1737441309215,0.039307,101900.0,101890.0,0.65931778]
[1737441309907,0.400107,101900.0,101890.0,0.65931778]
[1737441310107,0.400107,101900.0,101890.0,0.40598039]
[1737441310512,0.039307,101900.0,101890.0,0.40598039]
[1737441310714,0.500507,101900.0,101890.0,0.40598039]
[1737441311415,0.500507,101900.0,101890.0,0.17373523]
[1737441311807,0.139707,101900.0,101890.0,0.21304523]
[1737441312413,0.07444605,101900.0,101890.0,0.21304523]
[1737441312615,0.11375305,101900.0,101890.0,0.21304523]
[1737441313014,0.47455305,101900.0,101890.0,0.21304523]
[1737441314416,0.47455305,101900.0,101890.0,0.17373523]
[1737441315114,0.32711795,101900.0,101890.0,0.17373523]
[1737441315417,0.46738159,101900.0,101890.0,0.17373523]
[1737441316721,0.03931,101890.0,101880.0,0.23236241]
[1737441316915,0.40011,101890.0,101880.0,0.23236241]
[1737441317110,0.50106664,101890.0,101880.0,0.23236241]
[1737441318219,0.60166664,101890.0,101880.0,0.23236241]
[1737441318818,0.60179146,101890.0,101880.0,0.1643624]
[1737441319811,0.039318,101870.0,101860.0,0.03415555]
[1737441320012,0.039322,101860.0,101850.0,0.7757874]
[1737441320315,0.039322,101860.0,101850.0,0.87393727]
[1737441320906,0.039322,101860.0,101850.0,0.83461227]
[1737441321509,0.039322,101860.0,101850.0,0.36381227]
[1737441321713,0.039322,101860.0,101850.0,0.2656624]
[1737441322316,0.039322,101860.0,101850.0,0.33305347]
[1737441322822,0.039322,101860.0,101850.0,0.2656624]
[1737441323218,0.039326,101850.0,101840.0,0.2896822]
[1737441323522,0.46751707,101850.0,101840.0,0.2896822]
[1737441323712,0.67581707,101850.0,101840.0,0.22168219]
[1737441326709,0.03933,101840.0,101830.0,0.099908]
[1737441327013,0.40013,101840.0,101830.0,0.099908]
[1737441327418,0.46752107,101840.0,101830.0,0.099908]
[1737441327620,0.40013,101840.0,101830.0,0.099908]
[1737441328621,0.40013,101840.0,101830.0,0.03190799]
[1737441330324,0.46752107,101840.0,101830.0,0.03190799]
[1737441332124,0.46752107,101840.0,101820.0,0.34983191]
[1737441332427,0.039337,101820.0,101810.0,0.4609]
[1737441332628,0.039337,101820.0,101810.0,0.73859107]
[1737441332819,0.039337,101820.0,101810.0,0.98613013]
[1737441333728,0.039337,101820.0,101810.0,0.87939806]
[1737441334034,0.039337,101820.0,101810.0,0.98153314]
[1737441334719,0.039337,101820.0,101810.0,0.91414207]
[1737441334915,0.039337,101820.0,101810.0,0.98153314]
[1737441335326,0.039337,101820.0,101810.0,1.02087414]
[1737441336222,0.039337,101820.0,101810.0,0.91414207]
[1737441336428,0.039337,101820.0,101810.0,0.55334207]
[1737441337927,0.039337,101820.0,101810.0,0.62073314]
[1737441338732,0.039337,101820.0,101810.0,0.55273313]
[1737441342126,0.039337,101820.0,101810.0,0.95557497]
[1737441342427,0.00010606,101830.0,101820.0,0.17411914]
[1737441342641,0.039331,101840.0,101820.0,0.49558214]
[1737441342827,0.039331,101840.0,101830.0,0.46752507]
[1737441343027,0.039331,101840.0,101830.0,0.039334]
[1737441343227,0.039334,101830.0,101820.0,0.56574542]
[1737441343433,0.039334,101830.0,101820.0,0.400137]
[1737441343631,0.03944408,101830.0,101820.0,0.49833988]
[1737441343831,0.03944408,101830.0,101820.0,0.67573095]
[1737441344134,0.03944408,101830.0,101820.0,0.71777279]
[1737441344833,0.40024408,101830.0,101820.0,0.71777279]
[1737441345030,0.03944408,101830.0,101820.0,0.61104472]
[1737441345227,0.40024408,101830.0,101820.0,0.61104472]
[1737441345533,0.40024408,101830.0,101820.0,0.50104472]
[1737441346030,0.03944408,101830.0,101820.0,0.40284184]
[1737441346620,0.03944408,101830.0,101820.0,1.23224624]
[1737441348747,0.03944408,101830.0,101820.0,1.16424623]
[1737441349235,0.40024408,101830.0,101820.0,1.16424623]
[1737441349432,0.46763515,101830.0,101820.0,1.16424623]
[1737441349736,0.66883515,101830.0,101820.0,1.16424623]
[1737441352228,0.66883515,101830.0,101810.0,0.03474401]
[1737441352424,0.46752807,101820.0,101800.0,0.1]
[1737441352629,0.400141,101810.0,101800.0,0.1]
[1737441352941,0.400141,101810.0,101800.0,0.45914059]
[1737441353534,0.400141,101810.0,101800.0,0.56914059]
[1737441355032,0.400141,101810.0,101800.0,0.61380117]
[1737441355438,0.505741,101810.0,101800.0,0.61380117]
[1737441355940,0.505741,101810.0,101800.0,0.50380117]
[1737441357241,0.505741,101810.0,101800.0,0.4369592]
[1737441358639,0.505741,101810.0,101800.0,0.36895919]
[1737441358830,0.400139,101820.0,101800.0,0.93472026]
[1737441359026,0.400139,101820.0,101810.0,0.06739107]
[1737441359431,0.400139,101820.0,101800.0,0.83649326]
[1737441359936,0.400139,101820.0,101800.0,0.93471543]
[1737441360141,0.3608,101820.0,101810.0,0.06739107]
[1737441360342,0.03944408,101830.0,101820.0,0.039337]
[1737441360642,0.03944408,101830.0,101820.0,0.349537]
[1737441360947,0.03944408,101830.0,101820.0,0.44775917]
[1737441361335,0.03944408,101830.0,101820.0,0.40842217]
[1737441361537,0.46763515,101830.0,101820.0,0.208]
[1737441361739,0.46763515,101830.0,101820.0,0.1057]
[1737441361938,0.40024408,101830.0,101820.0,0.1057]
[1737441362139,0.03944408,101830.0,101820.0,0.2039077]
[1737441363644,0.03944408,101830.0,101820.0,0.13590769]
[1737441364840,0.10683515,101830.0,101820.0,0.13590769]
[1737441365245,0.46763515,101830.0,101820.0,0.13590769]
[1737441365446,0.039337,101820.0,101810.0,0.39789862]
[1737441365846,0.039337,101820.0,101810.0,0.49610632]
[1737441366146,0.10672807,101820.0,101810.0,0.49610632]
[1737441366346,0.039337,101820.0,101810.0,0.39050632]
[1737441366845,0.03944408,101830.0,101810.0,0.81869739]
[1737441367046,0.03944408,101830.0,101820.0,0.1027]
[1737441367646,0.03944408,101830.0,101820.0,0.20091253]
[1737441368749,0.03944408,101830.0,101820.0,0.13291252]
[1737441368950,0.10683515,101830.0,101820.0,0.13291252]
[1737441369247,0.03944408,101830.0,101820.0,0.13291252]
[1737441369650,0.10683515,101830.0,101820.0,0.13291252]
[1737441369844,0.10683515,101830.0,101820.0,0.03469999]
[1737441370034,0.03944408,101830.0,101820.0,0.03469999]
[1737441370240,0.03944408,101830.0,101820.0,0.49370769]
[1737441371142,0.03944408,101830.0,101820.0,0.13290769]
[1737441371447,0.03944408,101830.0,101820.0,0.49370769]
[1737441371851,0.03944408,101830.0,101820.0,0.60370769]
[1737441372441,0.03944408,101830.0,101820.0,0.64304469]
[1737441374743,0.03944408,101830.0,101820.0,0.68655048]
[1737441375145,0.03944408,101830.0,101820.0,0.65185049]
[1737441375445,0.03944408,101830.0,101820.0,0.50251349]
[1737441376650,0.03944408,101830.0,101820.0,0.54185049]
[1737441376850,0.03944408,101830.0,101820.0,0.64085049]
[1737441378546,0.10683515,101830.0,101820.0,0.64085049]
[1737441378740,0.03944408,101830.0,101820.0,0.64085049]
[1737441380049,0.03944408,101830.0,101820.0,0.28005049]
[1737441380353,0.03944408,101830.0,101820.0,0.64085049]
[1737441380740,0.10683515,101830.0,101820.0,0.64085049]
[1737441380951,0.10683515,101830.0,101820.0,0.87447969]
[1737441381350,0.03944408,101830.0,101820.0,0.87447969]
[1737441381650,0.10683515,101830.0,101820.0,0.73614269]
[1737441382553,0.03944408,101830.0,101820.0,0.73614269]
[1737441383848,0.03944408,101830.0,101820.0,0.77547969]
[1737441384051,0.03944408,101830.0,101820.0,0.18105049]
[1737441384552,0.03944408,101830.0,101820.0,0.54185049]
[1737441386040,0.03944408,101830.0,101820.0,0.18105049]
[1737441386245,0.03944408,101830.0,101820.0,0.54185049]
[1737441387241,0.03944408,101830.0,101820.0,0.18105049]
[1737441388149,0.03944408,101830.0,101820.0,0.77547969]
[1737441389852,0.00011008,101830.0,101820.0,0.87729264]
[1737441390064,0.53738608,101860.0,101850.0,0.039326]
[1737441390352,0.53738608,101860.0,101850.0,0.57751707]
[1737441390353,0.17658608,101860.0,101850.0,0.57751707]
[1737441390560,0.2060171,101860.0,101850.0,0.53819107]
[1737441390748,0.2060171,101860.0,101850.0,0.67572477]
[1737441390949,0.144019,101870.0,101860.0,0.039322]
[1737441391144,0.21141007,101870.0,101860.0,0.248522]
[1737441391651,0.57221007,101870.0,101860.0,0.09816914]
[1737441391857,0.039322,101860.0,101850.0,0.149325]
[1737441392159,0.10671307,101860.0,101850.0,0.60829414]
[1737441392553,0.10671307,101860.0,101850.0,0.88400909]
[1737441392951,0.10671307,101860.0,101850.0,0.74651495]
[1737441393155,0.10671307,101860.0,101850.0,0.63651495]
[1737441393450,0.31091307,101860.0,101850.0,0.63651495]
[1737441393651,0.31091307,101860.0,101850.0,0.56851494]
[1737441394256,0.31091307,101860.0,101850.0,0.92931494]
[1737441396152,0.31091307,101860.0,101850.0,0.3608]
[1737441397955,0.10671307,101860.0,101850.0,0.49830478]
[1737441398350,0.039322,101860.0,101850.0,0.49830478]
[1737441398551,0.21141007,101870.0,101850.0,0.49830478]
[1737441398856,0.21141007,101870.0,101860.0,0.039322]
[1737441399057,0.35837938,101870.0,101860.0,0.149322]
[1737441399552,0.18628831,101870.0,101860.0,0.24749114]
[1737441399760,0.14696931,101870.0,101860.0,0.35189114]
[1737441400063,0.14696931,101870.0,101860.0,0.78008221]
[1737441400257,0.16754315,101880.0,101870.0,0.039318]
[1737441400457,0.10482419,101880.0,101870.0,0.66690907]
[1737441400653,0.20626223,101890.0,101880.0,0.039314]
[1737441400957,0.20626223,101890.0,101880.0,0.400114]
[1737441401162,0.2736533,101890.0,101880.0,0.400114]
[1737441401462,0.3129633,101890.0,101880.0,0.49826387]
[1737441402861,0.10670107,101890.0,101880.0,0.49826387]
[1737441403048,0.10670107,101890.0,101880.0,0.09814987]
[1737441403252,0.20930107,101890.0,101880.0,0.09814987]
[1737441403457,0.039314,101880.0,101870.0,0.47211837]
[1737441403662,0.63269614,101880.0,101870.0,0.16540036]
[1737441405460,0.56530507,101880.0,101870.0,0.16540036]
[1737441405864,0.039318,101870.0,101860.0,0.00011919]
[1737441406064,0.46750907,101870.0,101860.0,0.00011919]
[1737441406264,0.46750907,101870.0,101860.0,0.09827869]
[1737441407150,0.400118,101870.0,101860.0,0.09827869]
[1737441407354,0.400118,101870.0,101860.0,0.13760069]
[1737441407568,0.46750907,101870.0,101860.0,0.09827869]
[1737441412158,0.46750907,101870.0,101860.0,0.20827869]
[1737441412965,0.46750907,101870.0,101860.0,0.00011919]
[1737441413668,0.039323,101860.0,101850.0,0.3608]
[1737441413872,0.10671407,101860.0,101850.0,0.400126]
[1737441414356,0.039323,101860.0,101850.0,0.400126]
[1737441414559,0.039323,101860.0,101850.0,0.49830478]
[1737441420378,0.039323,101860.0,101850.0,0.53830478]
[1737441422371,0.10671407,101860.0,101850.0,0.49897878]
[1737441422574,0.66761407,101860.0,101830.0,1.01761671]
[1737441422877,0.495628,101850.0,101840.0,0.13750878]
[1737441423286,0.03933,101840.0,101830.0,1.36048855]
[1737441423470,0.10672107,101840.0,101830.0,1.32115555]
[1737441423665,0.495627,101850.0,101830.0,1.48673504]
[1737441423872,0.400127,101850.0,101840.0,0.03933]
[1737441424169,0.400127,101850.0,101840.0,0.13923]
[1737441424371,0.039327,101850.0,101840.0,0.20662107]
[1737441424595,0.039323,101860.0,101840.0,0.80112692]
[1737441424884,7.737e-05,101870.0,101860.0,0.039322]
[1737441425069,7.737e-05,101870.0,101860.0,0.46751307]
[1737441425469,7.737e-05,101870.0,101860.0,0.64008941]
[1737441425673,0.17637796,101880.0,101870.0,0.039318]
[1737441425881,0.60636923,101900.0,101880.0,0.039312]
[1737441426072,0.60636923,101900.0,101880.0,0.502612]
[1737441426273,0.6737603,101900.0,101880.0,0.60078114]
[1737441426682,5.982e-05,101890.0,101880.0,0.60078114]
[1737441427177,5.982e-05,101890.0,101880.0,0.96817221]
[1737441427374,0.23572826,101910.0,101900.0,0.039307]
[1737441427581,0.23572826,101910.0,101900.0,0.400107]
[1737441428080,0.23572826,101910.0,101900.0,0.49825687]
[1737441428280,0.23572826,101910.0,101900.0,0.56564794]
[1737441428475,0.23572826,101910.0,101900.0,0.75924794]
[1737441429583,0.57218607,101930.0,101910.0,0.039301]
[1737441429885,0.57218607,101930.0,101910.0,0.140101]
[1737441430183,0.57218607,101930.0,101910.0,0.23823161]
[1737441430974,0.57218607,101930.0,101910.0,0.27823161]
[1737441431478,0.57218607,101930.0,101910.0,0.23823161]
[1737441431888,0.504795,101930.0,101910.0,0.23823161]
[1737441432382,0.57218607,101930.0,101910.0,0.23823161]
[1737441432992,0.57218607,101930.0,101910.0,0.41223288]
[1737441433284,0.06739107,101920.0,101910.0,0.41223288]
[1737441433588,0.57218607,101930.0,101910.0,0.41223288]
[1737441433772,0.504795,101930.0,101910.0,0.41223288]
[1737441433975,0.3608,101920.0,101910.0,0.41223288]
[1737441434475,0.57218607,101930.0,101910.0,0.41223288]
[1737441434775,0.3608,101920.0,101910.0,0.41223288]
[1737441434980,0.400099,101920.0,101910.0,0.41223288]
[1737441435584,0.400099,101920.0,101910.0,0.13743161]
[1737441435779,0.400099,101920.0,101910.0,0.09813061]
[1737441435780,0.46749007,101920.0,101910.0,0.09813061]
[1737441436183,0.46749007,101920.0,101900.0,0.6159831]
[1737441436385,0.039299,101920.0,101900.0,0.6159831]
[1737441436584,0.504795,101930.0,101910.0,0.13742398]
[1737441436775,0.57218607,101930.0,101910.0,0.039303]
[1737441436983,0.57218607,101930.0,101910.0,0.13742398]
[1737441438090,0.3608,101920.0,101910.0,0.13742398]
[1737441438291,0.57218607,101930.0,101910.0,0.13742398]
[1737441439090,0.504795,101930.0,101910.0,0.20551205]
[1737441439383,0.5596,101940.0,101920.0,0.46748707]
[1737441439591,0.3608,101940.0,101930.0,0.039295]
[1737441440093,0.3608,101940.0,101930.0,0.13741116]
[1737441440594,0.46748207,101940.0,101930.0,0.13741116]
[1737441441289,0.400091,101940.0,101930.0,0.13741116]
[1737441441793,0.46748207,101940.0,101920.0,0.602198]
[1737441442183,0.400091,101940.0,101920.0,0.70029973]
[1737441442576,0.46748207,101940.0,101920.0,0.74186395]
[1737441443390,0.400091,101940.0,101920.0,0.74186395]
[1737441443693,0.400091,101940.0,101930.0,0.039295]
[1737441444285,0.400091,101940.0,101930.0,0.13740154]
[1737441444590,0.400091,101940.0,101930.0,0.17740154]
[1737441445892,0.400088,101950.0,101940.0,0.039291]
[1737441446694,0.400088,101950.0,101940.0,0.1373831]
[1737441446891,0.704084,101960.0,101950.0,0.039287]
[1737441447294,0.77147507,101960.0,101950.0,0.039287]
[1737441447492,0.77147507,101960.0,101950.0,0.13736948]
[1737441447893,0.704084,101960.0,101950.0,0.13736948]
[1737441448095,0.77147507,101960.0,101950.0,0.09808248]
[1737441450093,0.77147507,101960.0,101950.0,0.13808248]
[1737441450685,0.704084,101960.0,101950.0,0.14007837]
[1737441450889,0.77147507,101960.0,101950.0,0.14007837]
[1737441451997,0.40300636,101970.0,101950.0,0.54016537]
[1737441452296,0.03928,101970.0,101960.0,0.10667307]
[1737441452496,0.03928,101970.0,101960.0,0.039282]
[1737441452681,0.03928,101970.0,101960.0,0.400082]
[1737441452881,0.03928,101970.0,101960.0,0.49815967]
[1737441453385,0.03928,101970.0,101960.0,0.13735967]